bitfinex/quotes_SOLUSD_20220118
["timestamp","ask_amount","ask_price","bid_price","bid_amount"]
[1642506325108,2.01710543,137.2,137.15,6.0]
[1642506325307,2.01710543,137.2,137.15,16.99]
[1642506325507,2.01710543,137.21,137.15,16.99]
[1642506325713,2.01710543,137.21,137.15,18.48849418]
[1642506326334,6.53260151,137.23,137.15,18.48849418]
[1642506326533,3.61760151,137.23,137.15,102.29009418]
[1642506326734,3.61760151,137.23,137.16,2.915]
[1642506327033,3.61760151,137.23,137.17,47.07272913]
[1642506327233,3.61760151,137.23,137.17,55.98072913]
[1642506331343,3.61760151,137.23,137.17,66.46072913]
[1642506331742,3.61760151,137.23,137.18,2.915]
[1642506332141,1.60049608,137.23,137.19,79.12]
[1642506332341,1.60049608,137.23,137.19,6.25]
[1642506332541,1.60049608,137.23,137.19,6.51]
[1642506333141,37.6663995,137.22,137.19,6.25]
[1642506333341,3.03219997,137.21,137.2,1.5016146]
[1642506333541,4.56278534,137.21,137.2,6.0]
[1642506333742,4.56278534,137.21,137.2,6.25]
[1642506333944,1.60049608,137.23,137.2,6.25]
[1642506334142,1.60049608,137.23,137.21,6.25]
[1642506334143,6.53260151,137.23,137.21,6.25]
[1642506334343,3.61760151,137.23,137.21,6.25]
[1642506334540,3.61760151,137.23,137.22,1.5016146]
[1642506334742,3.61760151,137.23,137.22,1.7516146]
[1642506334942,3.61760151,137.23,137.22,1.5016146]
[1642506335344,8.18038685,137.23,137.19,6.0]
[1642506335543,8.18038685,137.23,137.2,0.25]
[1642506335945,8.18038685,137.23,137.21,1.5016146]
[1642506336145,8.18038685,137.23,137.2,0.25]
[1642506337345,2.915,137.22,137.2,0.25]
[1642506337744,2.915,137.22,137.21,1.5016146]
[1642506337945,4.93210543,137.22,137.2,0.25]
[1642506339846,2.01710543,137.22,137.21,1.5016146]
[1642506340046,2.01710543,137.22,137.21,58.59046053]
[1642506340247,2.01710543,137.22,137.21,58.84046053]
[1642506341851,2.01710543,137.25,137.21,13.3346146]
[1642506342051,2.01710543,137.25,137.22,6.0]
[1642506342251,2.01710543,137.25,137.22,6.25]
[1642506342460,2.01710543,137.25,137.23,1.5016146]
[1642506342853,2.01710543,137.25,137.24,0.25]
[1642506343053,1.29988854,137.25,137.24,5.589]
[1642506343253,1.29988854,137.25,137.24,14.503]
[1642506343857,1.29988854,137.25,137.24,54.65835998]
[1642506344054,1.29988854,137.25,137.24,54.91835998]
[1642506344557,9.12758799,137.31,137.24,54.91835998]
[1642506344558,8.0371372,137.3,137.24,65.84295998]
[1642506345856,6.79926726,137.32,137.24,65.84295998]
[1642506346059,6.79926726,137.32,137.24,62.92895998]
[1642506347159,6.79926726,137.32,137.25,2.912]
[1642506347360,8.03694028,137.31,137.25,2.912]
[1642506347560,8.03694028,137.31,137.26,6.25]
[1642506347763,8.03694028,137.31,137.27,40.93282082]
[1642506348460,6.79926726,137.32,137.27,40.93282082]
[1642506348662,3.88726726,137.32,137.27,40.93282082]
[1642506348861,2.912,137.31,137.27,40.93282082]
[1642506350061,2.912,137.31,137.28,6.0]
[1642506350263,4.56278534,137.3,137.29,0.25]
[1642506350663,6.79926726,137.32,137.29,0.25]
[1642506351564,4.56278534,137.31,137.26,0.25]
[1642506351764,4.56278534,137.31,137.3,0.08979214]
[1642506352165,6.79926726,137.32,137.3,1.59140674]
[1642506352565,3.88726726,137.32,137.3,1.59140674]
[1642506353565,3.88726726,137.32,137.31,0.25]
[1642506354166,8.03680561,137.32,137.31,0.25]
[1642506355167,3.88726726,137.32,137.31,0.25]
[1642506355366,6.79926726,137.34,137.31,0.25]
[1642506355673,4.56278534,137.33,137.3,0.08979214]
[1642506355866,2.912,137.32,137.3,0.08979214]
[1642506356067,2.912,137.33,137.3,0.08979214]
[1642506356266,2.912,137.33,137.31,1.5016146]
[1642506356466,10.94861754,137.33,137.31,1.5016146]
[1642506356666,8.03661754,137.33,137.31,1.5016146]
[1642506357268,8.03661754,137.33,137.32,0.25]
[1642506357471,3.88726726,137.33,137.32,1.7516146]
[1642506357669,3.88726726,137.33,137.32,8.3606146]
[1642506357870,3.88726726,137.33,137.32,14.3606146]
[1642506358370,0.22523612,137.33,137.32,56.10184455]
[1642506358580,6.21358799,137.37,137.32,56.36184455]
[1642506358770,4.1482986,137.36,137.32,56.36184455]
[1642506358970,4.1482986,137.36,137.33,6.0]
[1642506359173,4.1482986,137.36,137.34,0.25]
[1642506359370,2.15940696,137.36,137.35,1.5016146]
[1642506359570,6.21358799,137.39,137.35,15.6756146]
[1642506359799,6.21358799,137.39,137.36,0.25]
[1642506359973,6.21358799,137.39,137.36,6.25]
[1642506360176,6.21358799,137.41,137.37,31.2866211]
[1642506360579,6.21358799,137.41,137.38,6.25]
[1642506360775,6.21358799,137.41,137.39,1.5016146]
[1642506360975,32.53058537,137.4,137.39,1.5016146]
[1642506361174,35.56278534,137.4,137.34,2.911]
[1642506361377,2.911,137.39,137.31,13.391]
[1642506361575,2.911,137.39,137.29,10.48]
[1642506361976,41.20940322,137.38,137.3,50.02698298]
[1642506362176,2.82220786,137.37,137.3,49.93719084]
[1642506362580,2.912,137.38,137.3,49.93719084]
[1642506362780,2.912,137.38,137.3,50.19719084]
[1642506362979,13.8319,137.41,137.3,50.19719084]
[1642506363178,0.25,137.4,137.3,50.19719084]
[1642506363377,2.912,137.39,137.3,50.19719084]
[1642506364178,2.912,137.39,137.3,123.06719084]
[1642506364377,2.912,137.39,137.3,133.54719084]
[1642506364579,10.9201,137.4,137.31,2.912]
[1642506364781,2.912,137.39,137.31,3.172]
[1642506364980,2.912,137.39,137.32,6.0]
[1642506365280,2.912,137.39,137.33,29.09066021]
[1642506365679,2.912,137.39,137.34,6.0]
[1642506366784,2.911,137.41,137.34,6.0]
[1642506367403,44.4956971,137.41,137.34,6.0]
[1642506367604,55.4148971,137.41,137.34,6.0]
[1642506367805,4.14387827,137.4,137.31,2.912]
[1642506368004,2.912,137.39,137.3,10.48]
[1642506368207,2.912,137.39,137.31,6.0]
[1642506368404,2.912,137.39,137.29,6.0]
[1642506368704,10.9229,137.37,137.3,47.89700541]
[1642506368903,13.8349,137.37,137.3,47.89700541]
[1642506369104,2.912,137.39,137.31,6.0]
[1642506369306,2.912,137.39,137.31,6.26]
[1642506370107,4.14387827,137.38,137.31,6.26]
[1642506370310,2.912,137.37,137.31,6.26]
[1642506371108,2.912,137.37,137.31,6.0]
[1642506372609,13.8343,137.37,137.31,6.0]
[1642506373711,13.8343,137.37,137.34,0.04505755]
[1642506373911,4.56278534,137.36,137.34,0.04505755]
[1642506376116,4.56278534,137.36,137.34,1.54667215]
[1642506376315,2.912,137.39,137.34,1.54667215]
[1642506376717,2.912,137.39,137.34,26.67751779]
[1642506377719,26.409,137.4,137.34,26.67751779]
[1642506377923,23.498,137.4,137.34,26.67751779]
[1642506378124,13.8309,137.41,137.35,6.0]
[1642506378722,59.7485767,137.41,137.35,6.0]
[1642506379123,4.14388586,137.4,137.35,6.0]
[1642506379621,4.14388586,137.4,137.34,0.04505755]
[1642506379824,2.911,137.39,137.34,0.04505755]
[1642506381322,46.66421877,137.38,137.34,0.04505755]
[1642506381524,10.9201,137.4,137.34,0.04505755]
[1642506381722,2.911,137.39,137.34,0.04505755]
[1642506382925,10.9201,137.4,137.34,0.04505755]
[1642506383125,10.9201,137.4,137.34,6.04505755]
[1642506385326,4.14405278,137.39,137.34,6.04505755]
[1642506385729,47.12004002,137.38,137.34,6.04505755]
[1642506386126,7.05605278,137.39,137.34,6.04505755]
[1642506387129,2.912,137.39,137.34,6.04505755]
[1642506388531,46.38691637,137.38,137.34,6.04505755]
[1642506389128,2.912,137.39,137.34,6.04505755]
[1642506389330,10.9201,137.4,137.34,6.04505755]
[1642506390132,37.07750939,137.39,137.34,6.04505755]
[1642506390831,10.9201,137.4,137.34,6.04505755]
[1642506392633,10.9201,137.4,137.35,34.9272795]
[1642506393433,2.911,137.41,137.35,34.9272795]
[1642506393735,27.8711,137.42,137.36,6.0]
[1642506393936,2.911,137.42,137.36,6.0]
[1642506394136,2.911,137.42,137.36,17.1752]
[1642506395138,2.911,137.45,137.38,38.10057155]
[1642506395537,2.911,137.45,137.39,6.0]
[1642506396240,2.911,137.45,137.39,6.26]
[1642506397040,6.21358799,137.46,137.39,24.388]
[1642506397242,46.24349584,137.52,137.4,72.87]
[1642506397243,4.1454752,137.44,137.4,72.87]
[1642506397544,4.1454752,137.44,137.41,16.48]
[1642506397739,6.21358799,137.47,137.42,3.16]
[1642506397939,6.21358799,137.47,137.42,38.0872795]
[1642506398139,36.77322985,137.49,137.43,6.0]
[1642506398541,36.77322985,137.49,137.44,0.25]
[1642506400043,10.9121,137.5,137.44,0.25]
[1642506400243,9.12358799,137.52,137.45,2.908]
[1642506400444,20.03458799,137.52,137.45,2.908]
[1642506400643,20.03458799,137.52,137.46,6.25]
[1642506401071,46.22479071,137.51,137.46,6.25]
[1642506401248,0.98402225,137.48,137.46,6.25]
[1642506401448,0.98402225,137.48,137.47,1.5016146]
[1642506401843,0.98402225,137.48,137.47,1.7516146]
[1642506404143,0.98402225,137.48,137.47,7.7516146]
[1642506406145,36.4127207,137.52,137.47,7.7516146]
[1642506406347,36.4127207,137.52,137.48,6.25]
[1642506406746,0.98402225,137.52,137.48,6.25]
[1642506406946,0.98402225,137.52,137.48,0.25]
[1642506407148,0.98402225,137.52,137.49,6.0]
[1642506407350,0.98402225,137.52,137.5,1.5016146]
[1642506407551,0.98402225,137.52,137.5,1.7516146]
[1642506407753,44.08229785,137.52,137.5,1.7516146]
[1642506407950,4.56278534,137.51,137.5,0.25]
[1642506408576,4.56278534,137.51,137.47,6.25]
[1642506408752,4.56278534,137.51,137.47,6.0]
[1642506409253,2.908,137.5,137.46,6.0]
[1642506409652,40.697025,137.49,137.44,6.0]
[1642506409854,2.908,137.48,137.44,6.0]
[1642506410054,2.908,137.48,137.45,0.25]
[1642506410354,4.56278534,137.47,137.42,3.20305755]
[1642506410555,3.03219997,137.47,137.43,6.0]
[1642506410754,3.03219997,137.47,137.44,0.25]
[1642506410953,40.697025,137.49,137.45,1.5016146]
[1642506411153,0.98402225,137.48,137.46,0.25]
[1642506411558,11.89762225,137.48,137.46,0.25]
[1642506411855,16.46040759,137.48,137.46,0.25]
[1642506412055,5.54680759,137.48,137.46,0.25]
[1642506413358,5.50175004,137.48,137.46,0.25]
[1642506414456,5.50175004,137.48,137.46,1.5016146]
[1642506414656,0.9389647,137.48,137.46,1.5016146]
[1642506414856,0.9389647,137.48,137.47,0.25]
[1642506415056,2.46955007,137.48,137.47,0.25]
[1642506415761,5.50175004,137.48,137.47,0.25]
[1642506415962,5.50175004,137.48,137.44,3.158]
[1642506416160,4.56278534,137.48,137.44,3.158]
[1642506416361,4.56278534,137.48,137.45,6.0]
[1642506416562,4.56278534,137.48,137.46,1.5016146]
[1642506416766,4.56278534,137.48,137.46,1.7516146]
[1642506416963,4.56278534,137.48,137.46,0.25]
[1642506417764,4.56278534,137.48,137.44,3.418]
[1642506417964,4.56278534,137.48,137.45,6.0]
[1642506418165,17.12388799,137.52,137.46,1.7516146]
[1642506418566,17.12388799,137.52,137.47,6.0]
[1642506418764,63.83439768,137.52,137.48,0.25]
[1642506420067,2.908,137.51,137.48,0.25]
[1642506420266,2.908,137.51,137.49,1.5016146]
[1642506420467,55.83209768,137.52,137.49,1.5016146]
[1642506420669,55.83209768,137.52,137.5,0.25]
[1642506420867,55.83209768,137.52,137.5,5.52]
[1642506421068,9.12158799,137.52,137.5,5.77]
[1642506421567,6.21358799,137.52,137.51,1.5016146]
[1642506421766,4.13961312,137.53,137.51,1.5016146]
[1642506421969,4.13961312,137.53,137.51,1.7516146]
[1642506422169,4.13961312,137.53,137.52,0.25]
[1642506422369,1.23161312,137.53,137.52,0.25]
[1642506423595,1.23161312,137.53,137.51,1.5016146]
[1642506425174,6.21358799,137.55,137.52,6.25]
[1642506425372,6.21358799,137.55,137.52,13.983]
[1642506425572,6.21358799,137.55,137.53,1.5016146]
[1642506425771,6.21358799,137.55,137.54,0.25]
[1642506426171,6.21358799,137.55,137.54,6.25]
[1642506426372,47.89544865,137.57,137.54,6.25]
[1642506426572,47.89544865,137.57,137.55,1.5016146]
[1642506426772,44.98744865,137.57,137.55,1.5016146]
[1642506427274,4.56278534,137.56,137.55,1.5016146]
[1642506427673,44.98744865,137.57,137.55,7.7516146]
[1642506428475,25.53058537,137.56,137.55,0.25]
[1642506428678,25.53058537,137.56,137.52,0.25]
[1642506428874,25.53058537,137.56,137.52,6.25]
[1642506429073,25.53058537,137.56,137.51,9.158]
[1642506429274,1.53058537,137.56,137.51,9.158]
[1642506429877,44.98744865,137.57,137.51,9.158]
[1642506430077,44.98744865,137.57,137.51,12.966]
[1642506431205,0.97529148,137.55,137.51,6.25]
[1642506432807,44.01811914,137.54,137.51,6.25]
[1642506433008,4.56278534,137.53,137.51,6.0]
[1642506433309,7.47078534,137.53,137.5,6.0]
[1642506433507,7.47078534,137.53,137.46,6.0]
[1642506433805,7.47078534,137.53,137.46,53.35253001]
[1642506434508,7.47078534,137.53,137.46,53.61253001]
[1642506434509,18.38058534,137.53,137.46,53.61253001]
[1642506434709,15.47258534,137.53,137.46,53.61253001]
[1642506435010,15.47258534,137.53,137.47,3.158]
[1642506435206,15.47258534,137.53,137.47,3.418]
[1642506435409,4.56278534,137.53,137.48,6.0]
[1642506435607,4.56278534,137.53,137.49,25.67532104]
[1642506435808,4.56278534,137.53,137.49,25.92532104]
[1642506436009,4.56278534,137.53,137.5,6.0]
[1642506436210,4.56278534,137.53,137.51,0.25]
[1642506436508,4.56278534,137.53,137.51,1.7516146]
[1642506436707,2.908,137.54,137.51,1.5016146]
[1642506436910,2.908,137.54,137.52,6.0]
[1642506437108,2.908,137.54,137.49,0.25]
[1642506438211,13.8168,137.54,137.49,0.25]
[1642506439013,49.43606074,137.53,137.49,0.25]
[1642506439212,60.34576074,137.53,137.49,0.25]
[1642506440315,2.908,137.52,137.49,0.25]
[1642506440513,13.8185,137.52,137.48,2.908]
[1642506440713,13.8185,137.52,137.47,23.0695]
[1642506441514,2.908,137.52,137.48,6.0]
[1642506441715,52.34406074,137.53,137.49,0.25]
[1642506442517,2.908,137.53,137.49,0.25]
[1642506442920,13.8175,137.54,137.49,0.25]
[1642506443717,53.72761135,137.54,137.49,0.25]
[1642506445117,50.81961135,137.54,137.49,0.25]
[1642506447718,0.25,137.53,137.49,0.25]
[1642506447920,2.908,137.52,137.49,0.25]
[1642506448120,1.53058537,137.51,137.49,0.25]
[1642506448520,2.908,137.52,137.49,0.25]
[1642506448718,36.70789865,137.51,137.5,1.5016146]
[1642506449118,36.67789865,137.51,137.5,1.7516146]
[1642506449719,10.9103,137.53,137.5,1.7516146]
[1642506449920,1.53058537,137.52,137.51,0.25]
[1642506450621,5.67401027,137.52,137.51,0.25]
[1642506450819,5.67401027,137.52,137.51,1.7516146]
[1642506451022,4.1434249,137.52,137.51,7.5016146]
[1642506451220,4.1434249,137.52,137.51,10.9196146]
[1642506451421,4.1434249,137.55,137.51,10.9196146]
[1642506451720,4.1434249,137.55,137.52,6.25]
[1642506452121,4.1434249,137.55,137.53,1.5016146]
[1642506452322,17.9571249,137.58,137.54,0.25]
[1642506452522,17.9571249,137.58,137.54,6.25]
[1642506453230,17.9571249,137.58,137.55,6.0]
[1642506453422,7.0514249,137.58,137.56,1.5016146]
[1642506453623,4.1434249,137.58,137.57,6.0]
[1642506454024,4.1434249,137.58,137.57,6.25]
[1642506454625,4.1434249,137.59,137.57,0.25]
[1642506454824,4.56278534,137.58,137.57,6.25]
[1642506455025,4.1434249,137.59,137.57,7.7516146]
[1642506456128,0.98120061,137.58,137.57,7.7516146]
[1642506456524,45.41497069,137.58,137.53,26.6497]
[1642506456726,2.907,137.57,137.53,26.6497]
[1642506457125,2.907,137.57,137.53,2.907]
[1642506457928,13.8138,137.57,137.53,2.907]
[1642506458431,17.9572249,137.57,137.53,2.907]
[1642506459529,4.1434249,137.56,137.54,0.25]
[1642506459728,4.56278534,137.55,137.54,0.25]
[1642506460530,4.56278534,137.55,137.5,0.25]
[1642506460731,4.1434249,137.56,137.5,0.25]
[1642506460933,10.9081,137.55,137.5,0.25]
[1642506461139,40.92999273,137.54,137.5,0.25]
[1642506462336,0.97529148,137.55,137.5,0.25]
[1642506462933,0.97529148,137.55,137.5,12.64718107]
[1642506463334,0.97529148,137.55,137.5,45.51248489]
[1642506463738,2.07089872,137.54,137.51,2.908]
[1642506463937,2.07089872,137.54,137.52,1.5016146]
[1642506464138,2.07089872,137.54,137.52,1.7516146]
[1642506465362,2.07089872,137.53,137.52,1.7516146]
[1642506465564,2.07089872,137.53,137.52,4.6596146]
[1642506466664,2.07089872,137.55,137.53,40.19254723]
[1642506467064,2.07089872,137.55,137.54,1.7516146]
[1642506468068,2.07089872,137.55,137.54,12.6545146]
[1642506468766,2.07089872,137.56,137.54,12.6545146]
[1642506468966,2.07089872,137.56,137.55,2.908]
[1642506469166,2.07089872,137.56,137.55,0.25]
[1642506469365,13.8119,137.61,137.55,0.25]
[1642506469567,2.907,137.6,137.56,0.25]
[1642506469766,2.907,137.6,137.54,35.3756]
[1642506471071,0.98316975,137.59,137.55,0.25]
[1642506473670,0.98316975,137.59,137.55,11.1513]
[1642506474071,2.07089872,137.56,137.55,11.1513]
[1642506474268,2.07089872,137.56,137.55,12.6529146]
[1642506475270,2.07089872,137.56,137.55,1.7516146]
[1642506476072,3.0481602,137.56,137.55,1.7516146]
[1642506476974,0.97726148,137.56,137.55,1.7516146]
[1642506479475,5.54004682,137.56,137.55,0.25]
[1642506479674,4.57874557,137.56,137.55,0.25]
[1642506479875,4.57874557,137.56,137.54,0.25]
[1642506480676,4.57874557,137.56,137.54,1.7516146]
[1642506481284,3.0481602,137.56,137.54,1.7516146]
[1642506484624,3.0481602,137.56,137.54,12.6536146]
[1642506485124,4.1434249,137.59,137.54,12.9136146]
[1642506485325,4.1434249,137.59,137.55,2.907]
[1642506485825,4.1434249,137.61,137.56,0.25]
[1642506486028,4.1434249,137.61,137.57,2.907]
[1642506486226,4.1434249,137.61,137.58,0.25]
[1642506486425,4.1434249,137.61,137.59,1.5016146]
[1642506486627,8.70621024,137.61,137.6,6.0]
[1642506486826,8.70621024,137.61,137.6,6.25]
[1642506487028,4.56278534,137.61,137.6,6.25]
[1642506488729,4.56278534,137.61,137.6,6.0]
[1642506488930,2.906,137.6,137.56,2.907]
[1642506489232,2.906,137.6,137.57,0.25]
[1642506489432,4.56278534,137.59,137.57,0.25]
[1642506490234,4.56278534,137.59,137.58,1.5016146]
[1642506490436,8.28416341,137.61,137.58,1.5016146]
[1642506490736,4.1434249,137.62,137.59,0.25]
[1642506491936,2.906,137.61,137.59,0.25]
[1642506492135,7.0494249,137.62,137.59,1.7516146]
[1642506492336,11.18989696,137.62,137.58,0.25]
[1642506493138,7.0494249,137.62,137.58,0.25]
[1642506493646,4.1434249,137.62,137.58,0.25]
[1642506493839,53.14211189,137.63,137.58,0.25]
[1642506494439,10.84312629,137.63,137.58,0.25]
[1642506497144,7.93712629,137.63,137.58,0.25]
[1642506497950,3.79370139,137.63,137.58,0.25]
[1642506498544,3.79370139,137.63,137.58,11.1489]
[1642506498947,7.93712629,137.63,137.58,11.1489]
[1642506499947,3.79370139,137.63,137.58,0.25]
[1642506500746,7.93712629,137.63,137.58,0.25]
[1642506502049,7.93712629,137.63,137.57,45.18978668]
[1642506502050,7.93712629,137.63,137.57,13.8056]
[1642506502249,2.906,137.62,137.57,10.8996]
[1642506502447,10.84412629,137.63,137.57,10.8996]
[1642506502647,10.84412629,137.63,137.56,23.9937]
[1642506503051,10.84412629,137.63,137.56,71.65083367]
[1642506503248,10.84412629,137.63,137.57,0.25]
[1642506504449,7.93712629,137.63,137.58,2.906]
[1642506504850,7.93712629,137.63,137.59,0.25]
[1642506505350,6.69970139,137.63,137.59,0.25]
[1642506505551,3.79370139,137.63,137.59,0.25]
[1642506505953,41.81340336,137.62,137.58,0.25]
[1642506506353,41.81340336,137.62,137.58,6.25]
[1642506508352,14.69550139,137.63,137.58,6.25]
[1642506510677,3.79370139,137.63,137.58,6.25]
[1642506511678,6.69970139,137.63,137.58,6.25]
[1642506511877,6.69970139,137.63,137.58,6.0]
[1642506512682,3.79370139,137.63,137.58,6.0]
[1642506513279,3.79370139,137.63,137.59,0.25]
[1642506546238,17.18070139,137.63,137.57,6.0]
[1642506546435,17.18070139,137.63,137.58,23.5366783]
[1642506547540,17.18070139,137.63,137.59,6.0]
[1642506547940,14.27370139,137.63,137.59,6.0]
[1642506548939,14.27370139,137.63,137.6,0.25]
[1642506549139,4.56278534,137.62,137.6,0.25]
[1642506550041,4.56278534,137.62,137.6,1.7516146]
[1642506550243,1.53058537,137.62,137.6,1.7516146]
[1642506550442,3.79370139,137.63,137.6,1.7516146]
[1642506559273,4.56278534,137.62,137.6,1.7516146]
[1642506559874,4.56278534,137.62,137.6,0.25]
[1642506560276,4.56278534,137.62,137.59,6.25]
[1642506562678,4.56278534,137.62,137.6,1.5016146]
[1642506563078,4.56278534,137.62,137.61,0.25]
[1642506564278,4.56278534,137.62,137.6,0.25]
[1642506564980,4.56278534,137.62,137.58,2.906]
[1642506565179,4.56278534,137.62,137.59,0.25]
[1642506565378,4.56278534,137.62,137.57,6.51]
[1642506565581,4.56278534,137.62,137.58,2.907]
[1642506565779,4.56278534,137.62,137.59,0.25]
[1642506565980,4.56278534,137.62,137.59,6.25]
[1642506566183,4.56278534,137.62,137.59,0.25]
[1642506566484,4.56278534,137.62,137.6,6.0]
[1642506566681,4.56278534,137.62,137.61,0.25]
[1642506567985,4.56278534,137.62,137.58,0.25]
[1642506569586,3.79370139,137.63,137.58,0.25]
[1642506570886,2.906,137.62,137.58,0.25]
[1642506572388,2.906,137.62,137.55,6.0]
[1642506572587,10.9043,137.6,137.55,6.0]
[1642506572787,2.907,137.59,137.56,0.25]
[1642506572987,2.907,137.59,137.53,6.0]
[1642506573189,2.907,137.59,137.53,52.24081782]
[1642506574191,2.907,137.59,137.54,0.25]
[1642506577491,54.80281576,137.6,137.54,0.25]
[1642506577892,54.80281576,137.6,137.54,24.2927]
[1642506578094,54.80281576,137.6,137.55,6.0]
[1642506578292,10.9043,137.6,137.56,0.25]
[1642506582700,59.26464385,137.61,137.56,0.25]
[1642506584500,59.26464385,137.61,137.55,0.25]
[1642506584697,73.12,137.6,137.53,2.907]
[1642506584927,83.7778,137.58,137.53,2.907]
[1642506585098,13.387,137.57,137.46,24.272]
[1642506585297,37.7563,137.57,137.44,3.7931988]
[1642506585500,37.7563,137.57,137.46,6.0]
[1642506585700,37.7563,137.57,137.45,6.0]
[1642506585901,72.87,137.56,137.44,8.908]
[1642506586102,2.908,137.55,137.46,38.88155609]
[1642506586400,3.158,137.55,137.46,38.88155609]
[1642506586600,10.9095,137.54,137.47,6.0]
[1642506586799,3.158,137.53,137.47,6.0]
[1642506587005,42.30362922,137.53,137.47,6.0]
[1642506587199,42.05362922,137.53,137.47,6.0]
[1642506588603,52.96392922,137.53,137.48,0.25]
[1642506590303,52.96392922,137.53,137.47,6.0]
[1642506590304,0.25,137.52,137.47,6.0]
[1642506590504,2.908,137.51,137.45,6.0]
[1642506591104,2.908,137.51,137.44,2.908]
[1642506591305,41.5643346,137.5,137.44,2.908]
[1642506591507,13.8216,137.49,137.44,2.908]
[1642506591709,14.0716,137.49,137.41,24.5874]
[1642506591909,14.0716,137.49,137.42,6.0]
[1642506592308,13.8216,137.49,137.42,55.40158314]
[1642506592536,13.8216,137.49,137.43,6.0]
[1642506593535,13.8216,137.49,137.44,0.25]
[1642506593737,44.4961,137.52,137.44,0.25]
[1642506594135,44.4961,137.52,137.44,1.72824526]
[1642506594335,44.4961,137.52,137.45,26.60810771]
[1642506594536,2.908,137.51,137.45,26.60810771]
[1642506594738,2.908,137.51,137.46,0.25]
[1642506594934,13.8197,137.51,137.46,0.25]
[1642506595135,2.908,137.51,137.46,0.25]
[1642506596236,10.9112,137.51,137.46,0.25]
[1642506596438,2.908,137.5,137.46,0.25]
[1642506596637,10.9112,137.51,137.46,0.25]
[1642506596839,2.908,137.5,137.44,6.25]
[1642506597137,2.908,137.52,137.46,1.47824526]
[1642506597342,2.908,137.54,137.47,0.25]
[1642506597538,2.908,137.54,137.47,6.25]
[1642506597738,2.908,137.54,137.48,1.47824526]
[1642506598037,2.908,137.54,137.49,6.0]
[1642506598238,2.908,137.54,137.49,38.70063336]
[1642506600342,2.908,137.54,137.49,0.25]
[1642506600541,13.8169,137.54,137.47,24.9706]
[1642506600742,13.8169,137.54,137.48,0.25]
[1642506601443,2.908,137.54,137.48,0.25]
[1642506601945,2.908,137.54,137.48,1.47824526]
[1642506602146,2.908,137.54,137.48,7.72824526]
[1642506602546,2.908,137.54,137.48,7.98824526]
[1642506602749,2.908,137.54,137.49,27.53847382]
[1642506602946,4.51038133,137.55,137.49,27.53847382]
[1642506603149,4.51038133,137.55,137.5,6.25]
[1642506605651,1.60238133,137.55,137.5,6.25]
[1642506607854,2.908,137.54,137.5,6.25]
[1642506610854,4.51038133,137.55,137.5,6.25]
[1642506611256,1.51538133,137.55,137.51,2.908]
[1642506611457,37.0704,137.58,137.51,2.908]
[1642506611656,2.908,137.58,137.52,6.25]
[1642506612055,2.908,137.58,137.53,42.47121703]
[1642506612255,2.908,137.58,137.54,0.25]
[1642506613658,2.908,137.58,137.53,42.47121703]
[1642506615159,2.908,137.58,137.54,0.25]
[1642506616559,2.908,137.58,137.53,42.47121703]
[1642506617261,2.908,137.58,137.51,6.0]
[1642506617469,2.908,137.58,137.52,0.25]
[1642506617470,13.8137,137.58,137.52,0.25]
[1642506618171,44.30258318,137.57,137.52,0.25]
[1642506618367,2.908,137.56,137.52,0.25]
[1642506618568,2.908,137.56,137.51,0.25]
[1642506619397,2.908,137.56,137.48,2.908]
[1642506619697,10.9091,137.54,137.47,48.5832]
[1642506619898,2.908,137.53,137.48,6.0]
[1642506620100,2.908,137.53,137.47,48.5832]
[1642506620603,2.908,137.53,137.48,36.98361528]